{"text_format":"3","workbook":"xlsx","n_sheets":4,"sheets":["Início","Despesas","Rendimentos","Resumo dos Lucros e Perdas"],"not_rendered":{"charts":1},"read":"whole","date_system":"1900"}

{"sheet":"Início","index":0,"n_rows":8,"n_cols":2,"rows_kept":8}
[null,"ACERCA DESTE MODELO"]
[null,"Utilize este livro Orçamento de Eventos para controlar as Despesas e os Rendimentos de um evento."]
[null,"Introduza o Nome do Evento e os detalhes nas tabelas nas folhas de cálculo Despesas e Rendimentos."]
[null,"As Despesas Totais e os Rendimentos Totais são calculados automaticamente."]
[null,"O Resumo e o Gráfico dos Lucros e Perdas são atualizados automaticamente na folha de cálculo Resumo dos Lucros e Perdas."]
[null,"Nota: "]
[null,"Existem instruções adicionais na coluna A de cada folha de cálculo. O texto encontra-se intencionalmente oculto. Para remover o texto, selecione a coluna A e, em seguida, selecione ELIMINAR. "]
[null,"Para saber mais sobre as tabelas, prima SHIFT+F10 numa tabela, selecione a opção TABELA e, em seguida, selecione TEXTO ALTERNATIVO"]

{"sheet":"Despesas","index":1,"n_rows":32,"n_cols":8,"rows_kept":32,"merged":[[0,1,0,2],[0,3,0,4],[2,1,3,1]]}
["Introduza as despesas Estimadas e Reais de cada categoria nas respetivas tabelas nesta folha de cálculo e o Nome do Evento na célula D1 para personalizar o título desta e das outras folhas de cálculo. O subtítulo desta folha de cálculo encontra-se na célula H1. Existem instruções úteis sobre como utilizar esta folha de cálculo nas células desta coluna. A instrução seguinte encontra-se na célula A3.","Orçamento de Evento para",null,"Nome do Evento",{"$nulls":3},"DESPESAS"]
[]
["A etiqueta Despesas Totais encontra-se na célula à direita, a etiqueta Estimadas na célula G3 e Reais na célula H3.","DESPESAS TOTAIS",{"$nulls":4},"Estimado","Real"]
["As Despesas Estimadas Totais na célula G4 e as Despesas Reais Totais na célula H4 são calculadas automaticamente. A instrução seguinte encontra-se na célula A6.",{"$nulls":5},{"$f":"SUM(C11,C19,C25,C32,G11,G19,G24)","v":{"v":882,"d":"882.00 €"}},{"$f":"SUM(D11,D19,D25,D32,H11,H19,H24)","v":{"v":302,"d":"302.00 €"}}]
[]
["Introduza as Despesas com o Local na tabela que começa na célula à direita e as Despesas com Catering na tabela que começa na célula F6. A instrução seguinte encontra-se na célula A13.","Local","Estimado","Real",null,"Catering","Estimado","Real"]
[null,"Taxas dos quartos e salas",{"v":500,"d":"500.00 €"},null,null,"Alimentação"]
[null,"Funcionários do local",{"$nulls":3},"Bebidas",{"v":20,"d":"20.00 €"}]
[null,"Equipamento",{"$nulls":3},"Roupa de Mesa",null,{"v":20,"d":"20.00 €"}]
[null,"Mesas e cadeiras",{"$nulls":3},"Funcionários e gorjetas"]
[null,"Total",{"$f":"SUBTOTAL(109,DespesasComOLocal[Estimado])","v":{"v":500,"d":"500.00 €"}},{"$f":"SUBTOTAL(103,DespesasComOLocal[Real])","v":{"v":0,"d":"0.00 €"}},null,"Total",{"$f":"SUBTOTAL(109,DespesasComCatering[Estimado])","v":{"v":20,"d":"20.00 €"}},{"$f":"SUBTOTAL(103,DespesasComCatering[Real])","v":{"v":1,"d":"1.00 €"}}]
[]
["Introduza as Despesas com Decorações na tabela que começa na célula à direita e as Despesas com o Programa na tabela que começa na célula F13. A instrução seguinte encontra-se na célula A21.","Decorações","Estimado","Real",null,"Programa","Estimado","Real"]
[null,"Flores",{"v":200,"d":"200.00 €"},{"v":300,"d":"300.00 €"},null,"Intérpretes"]
[null,"Velas",{"$nulls":3},"Oradores",{"v":30,"d":"30.00 €"}]
[null,"Iluminação",{"$nulls":3},"Viagens"]
[null,"Balões",{"$nulls":3},"Hotel"]
[null,"Fornecimento de papel",{"$nulls":3},"Outros"]
[null,"Total",{"$f":"SUBTOTAL(109,DespesasComDecorações[Estimado])","v":{"v":200,"d":"200.00 €"}},{"$f":"SUBTOTAL(109,DespesasComDecorações[Real])","v":{"v":300,"d":"300.00 €"}},null,"Total",{"$f":"SUBTOTAL(109,DespesasComOPrograma[Estimado])","v":{"v":30,"d":"30.00 €"}},{"$f":"SUBTOTAL(103,DespesasComOPrograma[Real])","v":{"v":0,"d":"0.00 €"}}]
[]
["Introduza as Despesas com Publicidade na tabela que começa na célula à direita e as Despesas com Prémios na tabela que começa na célula F21. A instrução seguinte encontra-se na célula A27.","Publicidade","Estimado","Real",null,"Prémios","Estimado","Real"]
[null,"Design gráfico",{"$nulls":3},"Fitas/Condecorações/Troféus"]
[null,"Fotocópias/Impressões",{"v":20,"d":"20.00 €"},null,null,"Presentes",{"v":100,"d":"100.00 €"}]
[null,"Correio",{"$nulls":3},"Total",{"$f":"SUBTOTAL(109,DespesasComPrémios[Estimado])","v":{"v":100,"d":"100.00 €"}},{"$f":"SUBTOTAL(103,DespesasComPrémios[Real])","v":{"v":0,"d":"0.00 €"}}]
[null,"Total",{"$f":"SUBTOTAL(109,DespesasComPublicidade[Estimado])","v":{"v":20,"d":"20.00 €"}},{"$f":"SUBTOTAL(103,DespesasComPublicidade[Real])","v":{"v":0,"d":"0.00 €"}}]
[]
["Introduza as Despesas Variadas na tabela que começa na célula à direita.","Diversos","Estimado","Real"]
[null,"Telefone",null,{"v":13,"d":"13.00 €"}]
[null,"Transportes",{"v":12,"d":"12.00 €"}]
[null,"Fornecimento de papelaria"]
[null,"Serviços de fax"]
[null,"Total",{"$f":"SUBTOTAL(109,DespesasDiversas[Estimado])","v":{"v":12,"d":"12.00 €"}},{"$f":"SUBTOTAL(103,DespesasDiversas[Real])","v":{"v":1,"d":"1.00 €"}}]

{"sheet":"Rendimentos","index":2,"n_rows":29,"n_cols":7,"rows_kept":29,"merged":[[0,1,0,2],[2,1,3,1]]}
["Introduza os Rendimentos Estimados e Reais para cada categoria nas respetivas tabelas nesta folha de cálculo. O título desta folha de cálculo é atualizado automaticamente nas células à direita. O subtítulo encontra-se na célula G1. Existem instruções úteis sobre como utilizar esta folha de cálculo nas células desta coluna. A instrução seguinte encontra-se na célula A3.",{"$f":"Despesas!B1","v":"Orçamento de Evento para"},null,{"$f":"Despesas!D1","v":"Nome do Evento"},null,null,"RENDIMENTOS"]
[]
["A etiqueta Rendimentos Totais encontra-se na célula à direita, a etiqueta Estimado na célula F3 e Real na célula G3.","RENDIMENTOS TOTAIS",{"$nulls":3},"Estimado","Real"]
["Os Rendimentos Estimados Totais são calculados automaticamente na célula F4 e os Rendimentos Reais Totais na célula G4.",{"$nulls":4},{"$f":"SUM(Entradas[[#Totals],[Rendimentos Estimados]],AnúnciosNoPrograma[[#Totals],[Rendimentos Estimados]],ExpositoresEVendedores[[#Totals],[Rendimentos Estimados]],VendaDeItens[[#Totals],[Rendimentos Estimados]])","v":{"v":1936,"d":"1,936.00 €"}},{"$f":"SUM(Entradas[[#Totals],[Rendimentos Reais]],AnúnciosNoPrograma[[#Totals],[Rendimentos Reais]],ExpositoresEVendedores[[#Totals],[Rendimentos Reais]],VendaDeItens[[#Totals],[Rendimentos Reais]])","v":{"v":1831,"d":"1,831.00 €"}}]
["A etiqueta Entradas encontra-se na célula à direita.","ENTRADAS"]
["Introduza o número de Entradas Estimadas e Reais com o preço dos bilhetes na tabela que começa na célula à direita. Os Rendimentos Estimados e Reais das Entradas são calculados automaticamente. A instrução seguinte encontra-se na célula A11.","N.º Estimado","N.º Real","Tipo","Preço","Rendimentos Estimados","Rendimentos Reais"]
[null,300,278,"Adultos /",{"v":5,"d":"5.00 €"},{"$f":"B7*E7","v":{"v":1500,"d":"1,500.00 €"}},{"$f":"C7*E7","v":{"v":1390,"d":"1,390.00 €"}}]
[null,197,195,"Crianças /",{"v":2,"d":"2.00 €"},{"$f":"B8*E8","v":{"v":394,"d":"394.00 €"}},{"$f":"C8*E8","v":{"v":390,"d":"390.00 €"}}]
[null,42,51,"Outros /",{"v":1,"d":"1.00 €"},{"$f":"B9*E9","v":{"v":42,"d":"42.00 €"}},{"$f":"C9*E9","v":{"v":51,"d":"51.00 €"}}]
[null,"Total",{"$nulls":3},{"$f":"SUBTOTAL(109,Entradas[Rendimentos Estimados])","v":{"v":1936,"d":"1,936.00 €"}},{"$f":"SUBTOTAL(109,Entradas[Rendimentos Reais])","v":{"v":1831,"d":"1,831.00 €"}}]
["A etiqueta Anúncios no Programa encontra-se na célula à direita.","ANÚNCIOS NO PROGRAMA"]
["Introduza o número de Anúncios no Programa Estimados e Reais e o Preço dos anúncios na tabela que começa na célula à direita. Os Rendimentos Estimados e Reais dos Anúncios são calculados automaticamente. A instrução seguinte encontra-se na célula A17.","N.º Estimado","N.º Real","Tipo","Preço","Rendimentos Estimados","Rendimentos Reais"]
[null,12,null,"Capas /",null,{"$f":"B13*E13","v":{"v":0,"d":"0.00 €"}},{"$f":"C13*E13","v":{"v":0,"d":"0.00 €"}}]
[null,null,158,"Meias-páginas /",null,{"$f":"B14*E14","v":{"v":0,"d":"0.00 €"}},{"$f":"C14*E14","v":{"v":0,"d":"0.00 €"}}]
[null,4,null,"Quartos-de-páginas /",null,{"$f":"B15*E15","v":{"v":0,"d":"0.00 €"}},{"$f":"C15*E15","v":{"v":0,"d":"0.00 €"}}]
[null,"Total",{"$nulls":3},{"$f":"SUBTOTAL(109,AnúnciosNoPrograma[Rendimentos Estimados])","v":{"v":0,"d":"0.00 €"}},{"$f":"SUBTOTAL(109,AnúnciosNoPrograma[Rendimentos Reais])","v":{"v":0,"d":"0.00 €"}}]
["A etiqueta Expositores ou Vendedores encontra-se na célula à direita.","EXPOSITORES/VENDEDORES"]
["Introduza o número de expositores e vendedores Estimados e Reais e os Preços dos stands na tabela que começa na célula à direita. Os Rendimentos Estimados e Reais são calculados automaticamente. A instrução seguinte encontra-se na célula A23.","N.º Estimado","N.º Real","Tipo","Preço","Rendimentos Estimados","Rendimentos Reais"]
[null,23,null,"Stands grandes /",null,{"$f":"B19*E19","v":{"v":0,"d":"0.00 €"}},{"$f":"C19*E19","v":{"v":0,"d":"0.00 €"}}]
[null,354,null,"Stands médios /",null,{"$f":"B20*E20","v":{"v":0,"d":"0.00 €"}},{"$f":"C20*E20","v":{"v":0,"d":"0.00 €"}}]
[null,56,null,"Stands pequenos /",null,{"$f":"B21*E21","v":{"v":0,"d":"0.00 €"}},{"$f":"C21*E21","v":{"v":0,"d":"0.00 €"}}]
[null,"Total",{"$nulls":3},{"$f":"SUBTOTAL(109,ExpositoresEVendedores[Rendimentos Estimados])","v":{"v":0,"d":"0.00 €"}},{"$f":"SUBTOTAL(109,ExpositoresEVendedores[Rendimentos Reais])","v":{"v":0,"d":"0.00 €"}}]
["A etiqueta Venda de itens encontra-se na célula à direita.","VENDA DE ITENS"]
["Introduza o número de Itens vendidos Estimados e Reais e os Preços dos itens na tabela que começa na célula à direita. Os Rendimentos Estimados e Reais são calculados automaticamente.","N.º Estimado","N.º Real","Tipo","Preço","Rendimentos Estimados","Rendimentos Reais"]
[{"$nulls":3},"Itens /",null,{"$f":"B25*E25","v":{"v":0,"d":"0.00 €"}},{"$f":"C25*E25","v":{"v":0,"d":"0.00 €"}}]
[null,123,null,"Itens /",null,{"$f":"B26*E26","v":{"v":0,"d":"0.00 €"}},{"$f":"C26*E26","v":{"v":0,"d":"0.00 €"}}]
[{"$nulls":3},"Itens /",null,{"$f":"B27*E27","v":{"v":0,"d":"0.00 €"}},{"$f":"C27*E27","v":{"v":0,"d":"0.00 €"}}]
[null,13,null,"Itens /",null,{"$f":"B28*E28","v":{"v":0,"d":"0.00 €"}},{"$f":"C28*E28","v":{"v":0,"d":"0.00 €"}}]
[null,"Total",{"$nulls":3},{"$f":"SUBTOTAL(109,VendaDeItens[Rendimentos Estimados])","v":{"v":0,"d":"0.00 €"}},{"$f":"SUBTOTAL(109,VendaDeItens[Rendimentos Reais])","v":{"v":0,"d":"0.00 €"}}]

{"sheet":"Resumo dos Lucros e Perdas","index":3,"n_rows":8,"n_cols":7,"rows_kept":8,"merged":[[0,1,0,2]]}
["O Resumo e o Gráfico dos Lucros e Perdas a mostrar os Rendimentos e as Despesas Totais são atualizados automaticamente nesta folha de cálculo. O título desta folha de cálculo é atualizado automaticamente nas células à direita. O subtítulo encontra-se na célula G1 e G2. Existem instruções úteis sobre como utilizar esta folha de cálculo nas células desta coluna. A instrução seguinte encontra-se na célula A3.",{"$f":"Despesas!B1","v":"Orçamento de Evento para"},null,{"$f":"Despesas!D1","v":"Nome do Evento"},null,null,"RESUMO "]
[{"$nulls":6},"dos Lucros e Perdas"]
["O gráfico de barras a mostrar os Rendimentos e Despesas Estimados em comparação com os Rendimentos e Despesas Reais encontra-se na célula E3.",{"$nulls":3},"O gráfico de barras a mostrar os Rendimentos e Despesas Estimados em comparação com os Rendimentos e Despesas Reais encontra-se nesta célula."]
["A tabela Resumo que começa na célula à direita é atualizada automaticamente. A instrução seguinte encontra-se na célula A8."," Total","Estimado","Real"]
[null,"Rendimentos totais",{"$f":"Rendimentos!F10","v":{"v":1936,"d":"1,936.00 €"}},{"$f":"Rendimentos!F4","v":{"v":1936,"d":"1,936.00 €"}}]
[null,"Despesas totais",{"$f":"Despesas!G4","v":{"v":882,"d":"882.00 €"}},{"$f":"Despesas!H4","v":{"v":302,"d":"302.00 €"}}]
[]
["Os lucros ou perdas totais Estimados são calculados automaticamente na célula C8 e os lucros ou perdas totais Reais na célula D8.","Lucro total\n(ou perda)",{"$f":"C5-C6","v":{"v":1054,"d":"1,054.00 €"}},{"$f":"D5-D6","v":{"v":1634,"d":"1,634.00 €"}}]